Workbook

Sheet LISEZ-MOI
D11: Lisez-moi
D16: INVESTIR – Outil d’analyse de l’exploitation agricole
D18: Introduction
D19: Cet outil permet d’évaluer la productivité et la rentabilité d’une exploitation en se fondant sur sa production agricole annuelle moyenne. Il permet d’établir des valeurs de référence ou d’évaluer l’impact d’investissements prévus. L’outil permet à un conseiller en SPIS (fournisseur, professionnel du développement, agent de vulgarisation) d’aider une exploitation agricole à identifier les coûts inutiles, à déterminer les activités qui apportent le plus de valeur et à bien rentabiliser les différents intrants.
D26: Conseils et astuces
D36: Aperçu
D37: Cet outil est composé des feuilles suivantes :
D38: 1. Informations générales | G38: actuellement disponibles sur l’exploitation ou dont l’acquisition prochaine est envisagée
D40: 2. Équipements et actifs | G40: actuellement disponibles sur l’exploitation ou dont l’acquisition prochaine est envisagée
D42: 3. Recettes cultures & élévage | G42: pour ajouter les ventes réelles ou prévues de cultures saisonnières (riz, maïs etc.), de cultures pluriannuelles (arbres fruitiers, etc.) et d'élevage et de produits dérivés
D45: 4. Autres recettes | G45: recettes supplémentaires ne provenant pas directement de la production de cultures ou d’animaux d’élevage, par exemple, la vente d’eau ou la location d’équipements
D48: 5. Financement | G48: calcule le remboursement annuel du prêt en fonction de l'information sur le crédit
D50: 6. Coûts Fixes et Variables | G50: pour ajouter tous les coûts/dépenses fixes et variables de l'entreprise agricole
D52: 7. Compte de résultat de l’exploitation | G52: Pas de saisie ! Calcul de la rentabilité brute de l’exploitation
D54: Feuille de calcul des prix des cultures | G54: pour calculer les coûts annuels moyens de certaines cultures et de certains animaux d’élevage
D56: Contrôle rapide | G56: calcul rapide de la rentabilité de l'exploitation utile avant d'effectuer une analyse complète
D62: En savoir plus
D63: Publié par : | F63: GIZ & FAO
D64: Responsables : | F64: Propulser l’agriculture : un grand défi énergétique pour le développement. Disponible à l’adresse :
D66: Contact: | F66: Powering.Agriculture@giz.de
D67: Lien de téléchargement : | F67: https://energypedia.info/wiki/Toolbox_on_SPIS
D68: À propos de : | F68: Propulser l’agriculture : un grand défi énergétique pour le développement. Disponible à l’adresse :
F70: https://poweringag.org
D71: Version: | F71: 1.6 (Juin 2019)
D73: La boîte à outils pour les systèmes d’irrigation à énergie solaire (Solar Powered Irrigation Systems, SPIS) ) est rendue possible grâce à l’initiative mondiale « Propulser l’agriculture : un grand défi énergétique pour le développement » (Powering Agriculture: An Energy Grand Challenge for Development – PAEGC). En 2012, l’Agence des États-Unis pour le développement international (USAID), l’Agence suédoise de coopération internationale au développement (SIDA), le ministère fédéral allemand de la Coopération économique et du Développement (BMZ), Duke Energy et l’Overseas Private Investment Cooperation (OPIC) ont mis leurs ressources en commun pour créer l’initiative PAEGC. Cette initiative a pour objectif d’appuyer de nouvelles approches durables afin d’accélérer le développement et le déploiement de solutions énergétiques propres visant à accroître la productivité et/ou la valeur agricole pour les agriculteurs et les agroindustries dans les pays en développement et dans les régions émergentes qui n’ont pas accès à une énergie propre, fiable et abordable.
D86: Les appellations employées dans ce produit d’information et la présentation des documents qui y figurent n’impliquent de la part de la Deutsche Gesellschaft für Internationale Zusammenarbeit (GIZ) GmbH, de l’Organisation des Nations unies pour l’alimentation et l’agriculture (FAO) ou de l’un des partenaires fondateurs de l’initiative PAEGC aucune prise de position quant au statut juridique ou au stade de développement des pays, territoires, villes ou zones ou de leurs autorités, ni quant au tracé de leurs frontières ou limites. La mention de sociétés déterminées ou de produits de fabricants, qu’ils soient ou non brevetés, n’entraîne de la part de la GIZ, de la FAO ou de l’un des partenaires fondateurs du PAEGC aucune approbation ou recommandation desdits produits de préférence à d’autres de nature analogue qui ne sont pas cités. Les opinions exprimées dans ce produit d’information sont celles de l’auteur et ne reflètent pas nécessairement celles de la GIZ, de la FAO, ou de l’un des partenaires fondateurs du PAEGC.
D101: La GIZ, la FAO et les partenaires fondateurs du PAEGC encouragent l’utilisation, la reproduction et la diffusion des informations contenues dans ce document. Sauf indication contraire, ces dernières peuvent être copiées, téléchargées et imprimées à des fins privées d’étude, de recherche et d’enseignement, ou pour être utilisées dans des produits ou services non commerciaux, à condition que la GIZ et la FAO soient clairement indiquées en tant que sources des informations et détentrices du droit d’auteur.
D109: © GIZ et FAO, 2018

Sheet List of dropdown (hidden)
A2: Superficie | B2: CF à ha
A3: ha | B3: 1
A4: Acre | B4: 2.47105
A5: Sq. km | B5: 0.01
A6: Sq. m | B6: 10000
A7: Sq. yard | B7: 11959.9
A8: Sq. ft | B8: 107639
A10: Facteur de conversion | B10: =VLOOKUP('1 Informations générales'!D14,'List of dropdown'!A3:B8,2,FALSE) -> 1
A13: Poids | B13: CF to kg
A14: kg | B14: 1
A15: metric ton | B15: 1000
A16: quintal | B16: 100
A17: pound (lb) | B17: 0.4536
A19: Facteur de conversion | B19: =VLOOKUP('1 Informations générales'!D15,'List of dropdown'!A14:B17,2,FALSE) -> 1

Sheet 1 Informations générales
A1: INVESTIR – Outil d’analyse de l’exploitation agricole
B2: 1 RENSEIGNEMENTS GÉNÉRAUX SUR L'EXPLOITATION
B5: Pays | C5: Cameroun | G5: Région
B6: Code ou nom de l’exploitation | C6: Mme Tchapdié | G6: Date | H6: 2019-06-25
B8: Village
B9: Division
B10: District
B11: Enquêteur
B12: Campagne agricole (années) | D12: 2019 | E12: 2020 | F12: (Année à quatre chiffres chacune ! )
B13: Monnaie utilisée pour les calculs | D13: FCFA
B14: Unité de mesure de surface | D14: ha | I14: Facteur de conversion en 1 hectare : | J14: ='List of dropdown'!B10 -> 1
B15: Unité de mesure du poids | D15: kg | I15: Facteur de conversion en 1 kilo : | J15: ='List of dropdown'!B19 -> 1
B18: RESSOURCES FONCIÈRES
B20: Statut de propriété | D20: Area
B21: + Terres en propriété | E21: 1.5 | F21: =+$D$14 -> ha | G21: = | I21: =+E21/$J$14 -> 1.5 | J21: ha
B22: + Partie des terres coopératives | F22: =+$D$14 -> ha | G22: = | I22: =+E22/$J$14 -> 0 | J22: ha
B23: + Terres exploitées sous contrat (appartenant à un partenaire) | F23: ha | G23: = | I23: 0 | J23: ha
B24: + Terres prises en location | F24: ha | G24: = | I24: 0 | J24: ha
B25: - Terres données en location | E25: 0.5 | F25: ha | G25: = | I25: 0.5 | J25: ha
B26: + Terres en possession d’autres sources | F26: ha | G26: = | I26: 0 | J26: ha
B27: - Terres en propriété inutilisées ou inutilisables | F27: ha | G27: = | I27: 0
D28: Total | E28: =+SUM(E21:E24)-E25+E26-E27 -> 1 | F28: ha | G28: = | I28: 1 | J28: ha
B31: Classification des terres | D31: Superficie | E31: pluviales | F31: irriguées | I31: Superficie totale
B32: Terres à cultures saisonnières | E32: 1 | G32: =+$D$14 -> ha | H32: = | I32: =(+E32+F32)/$J$14 -> 1 | J32: ha
B33: Pluriannuelles (avec et sans cultures intercalaires) | G33: ha | H33: = | I33: =(+E33+F33)/$J$14 -> 0 | J33: ha
B34: Serres | G34: ha | H34: = | I34: =(+E34+F34)/$J$14 -> 0 | J34: ha
B35: Pâturages | G35: ha | H35: = | I35: =(+E35+F35)/$J$14 -> 0 | J35: ha
B36: Jachères | D36: Total des terres agricoles/horticoles | G36: ha | H36: = | I36: =(+E36+F36)/$J$14 -> 0 | J36: ha
D37: Total des terres agricoles/horticoles | E37: =+SUM(E32:E36) -> 1 | F37: =+SUM(F32:F36) -> 0 | G37: ha | H37: = | I37: =IF((+$I$32+$I$33+$I$34+$I$35+$I$36)=I28,+$I$32+$I$33+$I$34+$I$35+$I$36,"CHECK Property rights") -> 1 | J37: ha

Sheet 2 Équipements et actifs
A1: INVESTIR – Outil d’analyse de l’exploitation agricole
B2: 2 ÉQUIPEMENTS ET RESSOURCES
E4: Code de l’exploitation | F4: ='1 Informations générales'!C6 -> Mme Tchapdié
B6: Type | C6: Coût de l'équipement existant (au moment de l'achat initial) | D6: Valeur de récupération (lors de la vente d'équipement existant) | E6: Âge | F6: Durée de vie normale | G6: Dépréciation annuelle en vue du remplacement
C10: ='1 Informations générales'!D13 -> FCFA | D10: ='1 Informations générales'!D13 -> FCFA | E10: years | F10: years | G10: ='1 Informations générales'!D13 -> FCFA
B11: Pulvérisateur | C11: 160000 | E11: 1 | F11: 7 | G11: =IFERROR(SLN(C11,D11,(F11-E11)),"") -> 26666.66667 | H11: Durée de vie normale indicative :
B12: Semoir | C12: 69000 | E12: 1 | F12: 7 | G12: =IFERROR(SLN(C12,D12,(F12-E12)),"") -> 11500 | H12: (très dépendante de la qualité!) | I12: Veuillez sélectionner
B13: Épandeur à engrais | C13: 45000 | E13: 1 | F13: 7 | G13: 7500 | H13: Hangar pour animaux - 20 years | I13: Hangar pour animaux
B14: Stockage/entrepôt | C14: 380000 | E14: 1 | F14: 20 | G14: =IFERROR(SLN(C14,D14,(F14-E14)),"") -> 20000 | H14: Garage/atelier – 20 ans | I14: garage/atelier
B15: Veuillez sélectionner | H15: Stockage/entrepôt – 20 ans | I15: Stockage/entrepôt
B16: Veuillez sélectionner | H16: Serre - 10 years | I16: Serre
B17: Veuillez sélectionner | G17: =IFERROR(SLN(C17,D17,(F17-E17)),"") ->  | H17: Autre bâtiment – 20 ans | I17: Autre bâtiment
B18: Veuillez sélectionner | H18: Char à bœufs – 7 ans | I18: Char à bœufs
B19: Veuillez sélectionner | H19: Camion/voiture – 10 ans | I19: Camion/voiture
B20: Veuillez sélectionner | H20: Tracteur – 10 ans | I20: Tracteur
B21: Veuillez sélectionner | H21: Charrue – 7 ans | I21: Charrue
B22: Veuillez sélectionner | H22: Cultivateur/charrue – 7 ans | I22: Cultivateur/charrue
B23: Veuillez sélectionner | H23: Semoir – 7 ans | I23: Semoir
B24: Veuillez sélectionner | H24: Épandeur à engrais – 7 ans | I24: Épandeur à engrais
B25: Veuillez sélectionner | H25: Pulvérisateur – 7 ans | I25: Pulvérisateur
B26: Veuillez sélectionner | H26: Faucheuse – 7 ans | I26: Faucheuse
B27: Veuillez sélectionner | H27: Presse – 7 ans | I27: Presse
B28: Veuillez sélectionner | H28: Moissonneuse-batteuse – 10 ans | I28: Moissonneuse-batteuse
H29: Matériel d’irrigation – 5 ans | I29: Matériel d’irrigation
H30: Pompe à eau – 7 ans | I30: Pompe à eau
H31: Modules photovoltaïques - 20 years | I31: Modules photovoltaïques
I32: puits/forage
C38: Dépréciation annuelle totale | F38: ='1 Informations générales'!D13 -> FCFA | G38: =+SUM(G11:G36) -> 65666.66667

Sheet 3 Recettes cultures & élévage
A1: INVESTIR – Outil d’analyse de l’exploitation agricole
B2: REVENU : CULTURE SAISONNIÈRE
E4: Code de l’exploitation | F4: ='1 Informations générales'!C6 -> Mme Tchapdié
B6: Terres agricoles utilisées : | C6: =SUM(C10:C14) -> 1 | D6: ='1 Informations générales'!D14 -> ha
D7: Unité | E7: ="Rendement par "& '1 Informations générales'!D14 &" ou Quantité" -> Rendement par ha ou Quantité | F7: Prix unitaire | G7: Valeur
B8: Ventes
B9: Types de cultures: | C9: Zone:
B10: Mais | C10: 1 | D10: kg/ha | E10: 4300 | F10: 185 | G10: =+F10*E10*C10 -> 795500
G11: =+F11*E11*C11 -> 0
G12: 0
G13: 0
G14: 0
B15: Produits dérivés:
G16: =+F16*E16 -> 0
G17: 0
G18: 0
B19: REVENU BRUT | G19: =SUM(G10:G18) -> 795500
B20: REVENU : CULTURE PÉNÉNINIALE
B22: Terres agricoles utilisées : | C22: =SUM(C26:C30) -> 0 | D22: ='1 Informations générales'!D14 -> ha
D23: Unité | E23: ="Rendement par "& '1 Informations générales'!D14 &" ou Quantité" -> Rendement par ha ou Quantité | F23: Prix unitaire | G23: Valeur
B24: Ventes
B25: Types de cultures: | C25: Zone:
G26: =+F26*E26*C26 -> 0
G27: =+F27*E27*C27 -> 0
G28: 0
G29: 0
G30: 0
B31: Produits dérivés:
G32: =+F32*E32 -> 0
G33: =+F33*E33 -> 0
G34: 0
B35: REVENU BRUT | G35: =SUM(G26:G34) -> 0
B36: REVENU : ÉLEVAGE
B39: Bétail pour la production : | C39: =SUM(C43:C56) -> 200 | D39: Bétail vendu : | F39: =SUM(E43:E56) -> 0 | G39: tête
D40: Unité | E40: Quantité | F40: Prix unitaire | G40: Valeur
B41: Pour la production | D41: A Vendre
B42: Type de bétail | C42: Quantité
B43: Vaches laitières | D43: tête | G43: =+F43*E43 -> 0
B44: Génisses | D44: tête | G44: =+F44*E44 -> 0
B45: Bœufs adultes | D45: tête | G45: 0
B46: Bœufs juvéniles | D46: tête | G46: 0
B47: Veaux | D47: tête | G47: 0
B48: Moutons | D48: tête | G48: 0
B49: Boucs de mouton | D49: tête | G49: 0
B50: Enfants moutons | D50: tête | G50: 0
B51: Chèvre | D51: tête | G51: 0
B52: Boucs de chèvre | D52: tête | G52: 0
B53: Chèvre chevreau | D53: tête | G53: 0
B54: Poulets de chair | D54: tête | G54: 0
B55: Pondeuses | C55: 200 | D55: tête | G55: 0 | K55: Calculateur de produits dérivés
G56: 0
B57: Produits dérivés: | K57: Rendement journalier en œufs: | N57: 1 | O57: =IF(K57="Rendement quotidien en lait:","litres/jour","œufs/jour") -> œufs/jour
B58: Lait | D58: litres | G58: =+F58*E58 -> 0 | K58: Nombre de poulets: | N58: 200 | O58: tête
B59: Œufs | D59: pieces | E59: 54000 | F59: 50 | G59: =+F59*E59 -> 2700000 | K59: Nombre de ponte par an: | N59: 270 | O59: jours/année
B60: Peaux | G60: =+F60*E60 -> 0 | K60: Remarque : Les périodes de traite (lactation) varient généralement entre 209 et 305 jours par année pour le bétail laitier.
B61: Fumier | G61: =+F61*E61 -> 0
G62: 0 | K62: Total | N62: =N57*N58*N59 -> 54000 | O62: =IF(K57="Rendement quotidien en lait:","litres/an","œufs/an") -> œufs/an
B63: REVENU BRUT | G63: =SUM(G43:G62) -> 2700000

Sheet 4 Autres recettes
A1: INVESTIR – Outil d’analyse de l’exploitation agricole
B2: 4 AUTRES RECETTES
K4: Code de l’exploitation | M4: ='1 Informations générales'!C6 -> Mme Tchapdié
B6: Mois | C6: Janvier | D6: Février | E6: Mars | F6: Avril | G6: Mai | H6: Juin | I6: Juillet | J6: Août | K6: Septembre | L6: Octobre | M6: Novembre | N6: Décembre | O6: Total
B7: Type AUTRES RECETTES | C7: 1 | D7: 2 | E7: 3 | F7: 4 | G7: 5 | H7: 6 | I7: 7 | J7: 8 | K7: 9 | L7: 10 | M7: 11 | N7: 12
B8: Vente d’eau | O8: =+SUM(C8:N8) -> 0
B9: Équipements donnés en location | O9: =+SUM(C9:N9) -> 0
B10: Espace de stockage donné en location | O10: =+SUM(C10:N10) -> 0
B11: Terres données en location | C11: 20000 | D11: 20000 | E11: 20000 | F11: 20000 | G11: 20000 | H11: 20000 | I11: 20000 | J11: 20000 | K11: 20000 | L11: 20000 | M11: 20000 | N11: 20000 | O11: 240000
B12: Main-d’œuvre donnée en location | O12: =+SUM(C12:N12) -> 0
O13: =+SUM(C13:N13) -> 0
O14: =+SUM(C14:N14) -> 0
B15: TOTAL DES AUTRES RECETTES par mois | C15: =+SUM(C8:C14) -> 20000 | D15: 20000 | E15: 20000 | F15: 20000 | G15: =+SUM(G8:G14) -> 20000 | H15: =+SUM(H8:H14) -> 20000 | I15: =+SUM(I8:I14) -> 20000 | J15: =+SUM(J8:J14) -> 20000 | K15: 20000 | L15: 20000 | M15: 20000 | N15: 20000 | O15: =+SUM(O8:O14) -> 240000

Sheet 5 Financement
A1: INVESTIR – Outil d’analyse de l’exploitation agricole
A2: CRÉDIT ET FINANCEMENT (calculateur simplifié, à confirmer auprès du prêteur)
J4: Code de l’exploitation | K4: ='1 Informations générales'!C6 -> Mme Tchapdié
A5: Calculateur | I5: Saisissez manuellement :
A6: Nom de la banque | B6: Montant du prêt | C6: Période de crédit (années) | D6: Mois de la prise de crédit | E6: Année de prise de crédit | F6: Taux d'intérêt annuel | G6: Remboursement mensuel du prêt | J6: Remarque : la valeur de la calculatrice aura priorité sur la valeur manuelle. Assurez-vous que la valeur de la calculatrice est 0 afin d'utiliser la valeur manuelle.
H7: OR
A9: ASRESBA | B9: 1000000 | C9: 1 | D9: 1 | E9: 2019 | F9: 0.08 | G9: =IF(D9,-PMT(F9/12,C9*12,B9),"0") -> 86988.42909
G10: =IF(D10,-PMT(F10/12,C10*12,B10),"0") -> 0
G11: =IF(D11,-PMT(F11/12,C11*12,B11),"0") -> 0
G12: 0
G13: 0
G14: 0
G15: 0
A16: TOTAL DU CRÉDIT | B16: =SUM(B9:B15) -> 1000000 | G16: =SUM(G9:G15) -> 86988.42909 | I16: =SUM(I9:I14) -> 0
D17: Total des remboursements annuels des prêts | G17: =G16*12 -> 1043861.149 | I17: =I16*12 -> 0

Sheet 6 Coûts Fixes et Variables
A1: INVESTIR – Outil d’analyse de l’exploitation agricole
B2: 6 COÛTS (FIXES et VARIABLES)
L4: Code de l’exploitation | M4: ='1 Informations générales'!C6 -> Mme Tchapdié
B6: Mois | C6: Janvier | D6: Février | E6: Mars | F6: Avril | G6: Mai | H6: Juin | I6: Juillet | J6: Août | K6: Septembre | L6: Octobre | M6: Novembre | N6: Décembre | O6: Total
C7: 1 | D7: 2 | E7: 3 | F7: 4 | G7: 5 | H7: 6 | I7: 7 | J7: 8 | K7: 9 | L7: 10 | M7: 11 | N7: 12
B8: COÛTS FIXES
B9: Frais de financement | C9: ='5 Financement'!$G$16 -> 86988.42909 | D9: ='5 Financement'!$G$16 -> 86988.42909 | E9: ='5 Financement'!$G$16 -> 86988.42909 | F9: ='5 Financement'!$G$16 -> 86988.42909 | G9: ='5 Financement'!$G$16 -> 86988.42909 | H9: ='5 Financement'!$G$16 -> 86988.42909 | I9: ='5 Financement'!$G$16 -> 86988.42909 | J9: ='5 Financement'!$G$16 -> 86988.42909 | K9: ='5 Financement'!$G$16 -> 86988.42909 | L9: ='5 Financement'!$G$16 -> 86988.42909 | M9: ='5 Financement'!$G$16 -> 86988.42909 | N9: ='5 Financement'!$G$16 -> 86988.42909 | O9: =+SUM(C9:N9) -> 1043861.149
B10: Coûts d'amortissement | C10: ='2 Équipements et actifs'!$G$38/12 -> 5472.222222 | D10: ='2 Équipements et actifs'!$G$38/12 -> 5472.222222 | E10: ='2 Équipements et actifs'!$G$38/12 -> 5472.222222 | F10: ='2 Équipements et actifs'!$G$38/12 -> 5472.222222 | G10: ='2 Équipements et actifs'!$G$38/12 -> 5472.222222 | H10: ='2 Équipements et actifs'!$G$38/12 -> 5472.222222 | I10: ='2 Équipements et actifs'!$G$38/12 -> 5472.222222 | J10: ='2 Équipements et actifs'!$G$38/12 -> 5472.222222 | K10: ='2 Équipements et actifs'!$G$38/12 -> 5472.222222 | L10: ='2 Équipements et actifs'!$G$38/12 -> 5472.222222 | M10: ='2 Équipements et actifs'!$G$38/12 -> 5472.222222 | N10: ='2 Équipements et actifs'!$G$38/12 -> 5472.222222 | O10: =+SUM(C10:N10) -> 65666.66667
B11: Cotisations des membres | C11: 10000 | D11: 10000 | E11: 10000 | F11: 10000 | G11: 10000 | H11: 10000 | I11: 10000 | J11: 10000 | K11: 10000 | L11: 10000 | M11: 10000 | N11: 10000 | O11: =+SUM(C11:N11) -> 120000
B12: Frais d'assurance | O12: =+SUM(C12:N12) -> 0
B13: Impôt foncier | O13: 0
B14: Cotisation au Fonds social | O14: =+SUM(C14:N14) -> 0
B15: Frais de location d'équipement | O15: 0
B16: Frais de location du terrain | O16: =+SUM(C16:N16) -> 0
B17: - | O17: =+SUM(C17:N17) -> 0
B18: - | O18: 0
B19: TOTAL DES FRAIS FIXES par mois | C19: =+SUM(C9:C18) -> 102460.6513 | D19: =+SUM(D9:D18) -> 102460.6513 | E19: 102460.6513 | F19: 102460.6513 | G19: 102460.6513 | H19: 102460.6513 | I19: 102460.6513 | J19: 102460.6513 | K19: 102460.6513 | L19: 102460.6513 | M19: 102460.6513 | N19: 102460.6513 | O19: =+SUM(O9:O18) -> 1229527.816
B21: FRAIS VARIABLES
B22: Coûts du carburant et du gaz | C22: =575*37 -> 21275 | O22: =+SUM(C22:N22) -> 21275
B23: Frais d'eau | C23: 5000 | D23: 5000 | E23: 5000 | F23: 5000 | G23: 5000 | H23: 5000 | I23: 5000 | J23: 5000 | K23: 5000 | L23: 5000 | M23: 5000 | N23: 5000 | O23: =+SUM(C23:N23) -> 60000
B24: Frais d'électricité | O24: 0
B25: Frais de transport | C25: 35000 | O25: 35000
B26: Coûts salariaux (personnel permanent) | C26: 70000 | D26: 70000 | E26: 70000 | F26: 70000 | G26: 70000 | H26: 70000 | I26: 70000 | J26: 70000 | K26: 70000 | O26: 630000
B27: Coûts salariaux (personnel temporaire) | O27: 0
B28: Semences | C28: =20*200 -> 4000 | O28: 4000
B29: Fumier et engrais | C29: =50*250 -> 12500 | O29: 12500
B30: Protection des végétaux | C30: =9*1300 -> 11700 | O30: 11700
B31: Fourrage | C31: =800*500 -> 400000 | O31: 400000
B32: Services vétérinaires | C32: =300*200 -> 60000 | O32: 60000
B33: Location traction et mécanisation | O33: 0
B34: Réparation et entretien de machines | C34: 65000 | O34: 65000
B35: Réparation et entretien de l'infrastructure | O35: 0
B36: Réparation et entretien de l'irrigation | O36: =+SUM(C36:N36) -> 0
B37: Téléphone | C37: 5000 | D37: 5000 | E37: 5000 | F37: 5000 | G37: 5000 | H37: 5000 | I37: 5000 | J37: 5000 | K37: 5000 | L37: 5000 | M37: 5000 | N37: 5000 | O37: 60000
B38: - | O38: 0
B39: FRAIS VARIABLES par mois | C39: =+SUM(C22:C38) -> 689475 | D39: 80000 | E39: 80000 | F39: 80000 | G39: 80000 | H39: 80000 | I39: 80000 | J39: 80000 | K39: 80000 | L39: 10000 | M39: 10000 | N39: 10000 | O39: 1359475

Sheet Graph table (hidden)
A7: FIXED COSTS | B7: ='6 Coûts Fixes et Variables'!B9 -> Frais de financement | C7: ='6 Coûts Fixes et Variables'!O9 -> 1043861.149
B8: ='6 Coûts Fixes et Variables'!B10 -> Coûts d'amortissement | C8: ='6 Coûts Fixes et Variables'!O10 -> 65666.66667
B9: ='6 Coûts Fixes et Variables'!B11 -> Cotisations des membres | C9: ='6 Coûts Fixes et Variables'!O11 -> 120000
B10: ='6 Coûts Fixes et Variables'!B12 -> Frais d'assurance | C10: ='6 Coûts Fixes et Variables'!O12 -> 0
B11: ='6 Coûts Fixes et Variables'!B13 -> Impôt foncier | C11: ='6 Coûts Fixes et Variables'!O13 -> 0
B12: ='6 Coûts Fixes et Variables'!B14 -> Cotisation au Fonds social | C12: ='6 Coûts Fixes et Variables'!O14 -> 0
B13: ='6 Coûts Fixes et Variables'!B15 -> Frais de location d'équipement | C13: ='6 Coûts Fixes et Variables'!O15 -> 0
B14: ='6 Coûts Fixes et Variables'!B16 -> Frais de location du terrain | C14: ='6 Coûts Fixes et Variables'!O16 -> 0
B15: ='6 Coûts Fixes et Variables'!B17 -> - | C15: ='6 Coûts Fixes et Variables'!O17 -> 0
B16: ='6 Coûts Fixes et Variables'!B18 -> - | C16: ='6 Coûts Fixes et Variables'!O18 -> 0
A17: ='6 Coûts Fixes et Variables'!B21 -> FRAIS VARIABLES | B17: ='6 Coûts Fixes et Variables'!B22 -> Coûts du carburant et du gaz | C17: ='6 Coûts Fixes et Variables'!O22 -> 21275
B18: ='6 Coûts Fixes et Variables'!B23 -> Frais d'eau | C18: ='6 Coûts Fixes et Variables'!O23 -> 60000
B19: ='6 Coûts Fixes et Variables'!B24 -> Frais d'électricité | C19: ='6 Coûts Fixes et Variables'!O24 -> 0
B20: ='6 Coûts Fixes et Variables'!B25 -> Frais de transport | C20: ='6 Coûts Fixes et Variables'!O25 -> 35000
B21: ='6 Coûts Fixes et Variables'!B26 -> Coûts salariaux (personnel permanent) | C21: ='6 Coûts Fixes et Variables'!O26 -> 630000
B22: ='6 Coûts Fixes et Variables'!B27 -> Coûts salariaux (personnel temporaire) | C22: ='6 Coûts Fixes et Variables'!O27 -> 0
B23: ='6 Coûts Fixes et Variables'!B28 -> Semences | C23: ='6 Coûts Fixes et Variables'!O28 -> 4000
B24: ='6 Coûts Fixes et Variables'!B29 -> Fumier et engrais | C24: ='6 Coûts Fixes et Variables'!O29 -> 12500
B25: ='6 Coûts Fixes et Variables'!B30 -> Protection des végétaux | C25: ='6 Coûts Fixes et Variables'!O30 -> 11700
B26: ='6 Coûts Fixes et Variables'!B31 -> Fourrage | C26: ='6 Coûts Fixes et Variables'!O31 -> 400000
B27: ='6 Coûts Fixes et Variables'!B32 -> Services vétérinaires | C27: ='6 Coûts Fixes et Variables'!O32 -> 60000
B28: ='6 Coûts Fixes et Variables'!B33 -> Location traction et mécanisation | C28: ='6 Coûts Fixes et Variables'!O33 -> 0
B29: ='6 Coûts Fixes et Variables'!B34 -> Réparation et entretien de machines | C29: ='6 Coûts Fixes et Variables'!O34 -> 65000
B30: ='6 Coûts Fixes et Variables'!B35 -> Réparation et entretien de l'infrastructure | C30: ='6 Coûts Fixes et Variables'!O35 -> 0
B31: ='6 Coûts Fixes et Variables'!B36 -> Réparation et entretien de l'irrigation | C31: ='6 Coûts Fixes et Variables'!O36 -> 0
B32: ='6 Coûts Fixes et Variables'!B37 -> Téléphone | C32: ='6 Coûts Fixes et Variables'!O37 -> 60000
B33: ='6 Coûts Fixes et Variables'!B38 -> - | C33: ='6 Coûts Fixes et Variables'!O38 -> 0

Sheet 7 Compte de résultat
A1: INVESTIR – Outil d’analyse de l’exploitation agricole
B2: 7 COMPTE DE RÉSULTAT DE L’EXPLOITATION
F4: Code de l’exploitation | G4: ='1 Informations générales'!C6 -> Mme Tchapdié
C6: + | D6: Valeur brute de production de cultures saisonnières | E6: =SUM('3 Recettes cultures & élévage'!G10:G14) -> 795500 | F6: ='1 Informations générales'!$D$13 -> FCFA | G6: + | H6: =IF($E$16=0,0,(+E6/$E$16)*(1-$E$14)) -> 0.2129567662
C7: + | D7: Valeur brute de production de produits dérivés des cultures saisonnières | E7: =SUM('3 Recettes cultures & élévage'!G16:G18) -> 0 | F7: ='1 Informations générales'!$D$13 -> FCFA | G7: + | H7: =IF($E$16=0,0,(+E7/$E$16)*(1-$E$14)) -> 0
C8: + | D8: Valeur brute de production de cultures pluriannuelles | E8: =SUM('3 Recettes cultures & élévage'!G26:G30) -> 0 | F8: ='1 Informations générales'!$D$13 -> FCFA | G8: + | H8: 0
C9: + | D9: Valeur brute de production de produits dérivés des cultures pluriannuelles | E9: =SUM('3 Recettes cultures & élévage'!G32:G34) -> 0 | F9: ='1 Informations générales'!$D$13 -> FCFA | G9: + | H9: 0
C10: + | D10: Valeur brute de production d’animaux d’élevage : | E10: =SUM('3 Recettes cultures & élévage'!G43:G56) -> 0 | F10: ='1 Informations générales'!$D$13 -> FCFA | G10: + | H10: 0
C11: + | D11: Valeur brute de production de produits dérivés d’animaux d’élevage | E11: =SUM('3 Recettes cultures & élévage'!G58:G62) -> 2700000 | F11: ='1 Informations générales'!$D$13 -> FCFA | G11: + | H11: 0.7227948066
C12: + | D12: Valeur brute des autres recettes : | E12: ='4 Autres recettes'!O15 -> 240000 | F12: ='1 Informations générales'!$D$13 -> FCFA | G12: + | H12: 0.06424842725
C14: - | D14: Pertes anticipées sur le total des ventes (facteur de réduction) | E14: 0.1 | F14: %
C16: = | D16: REVENU BRUT DE L’EXPLOITATION | E16: =SUM(E6:E12)-(SUM(E6:E12)*E14) -> 3361950 | F16: ='1 Informations générales'!$D$13 -> FCFA | G16: = | H16: =SUM(H6:H12) -> 1
C19: - | D19: Total des coûts fixes | E19: ='6 Coûts Fixes et Variables'!O19 -> 1229527.816 | F19: ='1 Informations générales'!$D$13 -> FCFA | G19: + | H19: =IF($E$21=0,0,+E19/$E$21) -> 0.4749040087
C20: - | D20: Total des coûts variables | E20: ='6 Coûts Fixes et Variables'!O39 -> 1359475 | F20: ='1 Informations générales'!$D$13 -> FCFA | G20: + | H20: =IF($E$21=0,0,+E20/$E$21) -> 0.5250959913
C21: = | D21: TOTAL DES COÛTS | E21: =SUM(E19:E20) -> 2589002.816 | F21: ='1 Informations générales'!$D$13 -> FCFA | G21: = | H21: =SUM(H19:H20) -> 1
C57: = | D57: ="RÉSULTAT BRUT DE LA FERME pour la période " & '1 Informations générales'!D12 -> RÉSULTAT BRUT DE LA FERME pour la période 2019 | E57: ="to " & '1 Informations générales'!E12 -> to 2020 | G57: =E16-E21 -> 772947.1843 | H57: ='1 Informations générales'!$D$13 -> FCFA
D58: Marge bénéficiaire de l’exploitation | G58: =(E16-E21)/E16 -> 0.2299103747
D60: ="bénéfice moyen par "&'1 Informations générales'!$D$14&" des cultures saisonnières:" -> bénéfice moyen par ha des cultures saisonnières: | F60: =IFERROR('3 Recettes cultures & élévage'!G19/'3 Recettes cultures & élévage'!C6,"pas de cultures") -> 795500 | H60: ='1 Informations générales'!$D$13&" per"&" "&'1 Informations générales'!$D$14 -> FCFA per ha
D61: ="bénéfice moyen par "&'1 Informations générales'!D14&" de cultures pérennes:" -> bénéfice moyen par ha de cultures pérennes: | F61: =IFERROR('3 Recettes cultures & élévage'!G35/'3 Recettes cultures & élévage'!C22,"pas de cultures") -> pas de cultures | H61: ='1 Informations générales'!$D$13&" per"&" "&'1 Informations générales'!$D$14 -> FCFA per ha
D62: bénéfice moyen par tête de bétail : | F62: =IFERROR(('3 Recettes cultures & élévage'!G63)/('3 Recettes cultures & élévage'!C39+'3 Recettes cultures & élévage'!F39),"pas de bétail") -> 13500 | H62: ='1 Informations générales'!$D$13&" per head" -> FCFA per head
D63: superficie totale en culture : | F63: ='3 Recettes cultures & élévage'!C6+'3 Recettes cultures & élévage'!C22 -> 1 | H63: ='1 Informations générales'!D14 -> ha | J63: =SUM('1 Informations générales'!I32:I36)-F63 -> 0
D64: =IF(J63<0,"Cultivated area does not match available crop area (1. General Information)","") -> 

Sheet Calcul des prix des cultures
A1: INVESTIR – Outil d’analyse de l’exploitation agricole
A2: Feuille supplémentaire permettant de calculer les coûts annuels moyens de certaines cultures et de certains animaux d’élevage sur la base des variations mensuelles saisonnières
B3: Janvier | C3: Février | D3: Mars | E3: Avril | F3: Mai | G3: Juin | H3: Juillet | I3: Août | J3: Septembre | K3: Octobre | L3: Novembre | M3: Décembre | N3: MOYENNE
B4: Prix unitaire | C4: Prix unitaire | D4: Prix unitaire | E4: Prix unitaire | F4: Prix unitaire | G4: Prix unitaire | H4: Prix unitaire | I4: Prix unitaire | J4: Prix unitaire | K4: Prix unitaire | L4: Prix unitaire | M4: Prix unitaire | N4: Prix unitaire
A5: Cultures saisonnières
A6: ='3 Recettes cultures & élévage'!B10 -> Mais | N6: =AVERAGE(B6:M6) -> 
A7: ='3 Recettes cultures & élévage'!B11 -> 0 | N7: =AVERAGE(B7:M7) -> 
A8: ='3 Recettes cultures & élévage'!B12 -> 0
A9: ='3 Recettes cultures & élévage'!B13 -> 0
A10: ='3 Recettes cultures & élévage'!B14 -> 0
A11: ='3 Recettes cultures & élévage'!B15 -> Produits dérivés:
A12: ='3 Recettes cultures & élévage'!B16 -> 0
A13: ='3 Recettes cultures & élévage'!B17 -> 0
A14: ='3 Recettes cultures & élévage'!B18 -> 0
A15: Cultures pluriannuelles
A16: ='3 Recettes cultures & élévage'!B26 -> 0
A17: ='3 Recettes cultures & élévage'!B27 -> 0
A18: ='3 Recettes cultures & élévage'!B28 -> 0
A19: ='3 Recettes cultures & élévage'!B29 -> 0
A20: ='3 Recettes cultures & élévage'!B30 -> 0
A21: ='3 Recettes cultures & élévage'!B31 -> Produits dérivés:
A22: ='3 Recettes cultures & élévage'!B32 -> 0
A23: ='3 Recettes cultures & élévage'!B33 -> 0
A24: ='3 Recettes cultures & élévage'!B34 -> 0
A25: Animaux d’élevage
A26: ='3 Recettes cultures & élévage'!B43 -> Vaches laitières
A27: ='3 Recettes cultures & élévage'!B44 -> Génisses
A28: ='3 Recettes cultures & élévage'!B45 -> Bœufs adultes
A29: ='3 Recettes cultures & élévage'!B46 -> Bœufs juvéniles
A30: ='3 Recettes cultures & élévage'!B47 -> Veaux
A31: ='3 Recettes cultures & élévage'!B48 -> Moutons
A32: ='3 Recettes cultures & élévage'!B49 -> Boucs de mouton
A33: ='3 Recettes cultures & élévage'!B50 -> Enfants moutons
A34: ='3 Recettes cultures & élévage'!B51 -> Chèvre
A35: ='3 Recettes cultures & élévage'!B52 -> Boucs de chèvre
A36: ='3 Recettes cultures & élévage'!B53 -> Chèvre chevreau
A37: ='3 Recettes cultures & élévage'!B54 -> Poulets de chair
A38: ='3 Recettes cultures & élévage'!B55 -> Pondeuses
A39: ='3 Recettes cultures & élévage'!B56 -> 0
A40: ='3 Recettes cultures & élévage'!B57 -> Produits dérivés:
A41: ='3 Recettes cultures & élévage'!B58 -> Lait
A42: ='3 Recettes cultures & élévage'!B59 -> Œufs
A43: ='3 Recettes cultures & élévage'!B60 -> Peaux
A44: ='3 Recettes cultures & élévage'!B61 -> Fumier
A45: ='3 Recettes cultures & élévage'!B62 -> 0

Sheet Contrôle rapide
A1: INVESTIR – Outil d’analyse de l’exploitation agricole
B2: Contrôle rapide
B5: Dépenses annuelles
B6: Nature de la dépense | C6: Exemples | D6: Montant annuel
B7: Coûts des cultures saisonnières | C7: Semis, pesticides, engrais, protection, etc. | F7: Calculatrice
B8: Dépenses liées aux cultures pérennes | C8: Semis, pesticides, engrais, protection, etc. | G8: additionner : | H8: multiplier : | I8: diviser :
B9: Dépenses liées au bétail | C9: Nouveau bétail, fourrage, abattage, services vétérinaires, etc. | F9: a.
B10: Exploitation et maintenance - Infrastructure | C10: Rénovations de bâtiments, peinture, plâtrage, clôtures, électricité, eau, etc. | F10: b.
B11: Exploitation et maintenance - Équipements fixes | C11: Pompes à eau, matériel d'irrigation, matériel d'emballage, broyage, carburant, pièces de rechange, réparations, etc. | F11: c.
B12: Exploitation et maintenance - Équipement mobile | C12: Tracteur, camions, charrue, remorque, carburant, pièces de rechange, réparations, etc. | F12: d.
B13: Main-d'œuvre | C13: Salaires, avantages sociaux, salaire propre etc. | F13: e.
B14: Vente et distribution | C14: Emballage, frais, publicité, etc. | F14: Total | G14: =SUM(G9:G13) -> 0 | H14: =H9*H10 -> 0 | I14: =I9/I10 -> 
B15: Gestion et administration | C15: Loyer, consommables de bureau, assurances, adhésions, remboursements de prêts, etc.
D17: =SUM(D7:D16) -> 0
B19: Revenu annuel
B20: Type de revenu | C20: Exemples | D20: Montant annuel
B21: Ventes de cultures saisonnières | C21: Tomates, céréales, riz, produits à valeur ajoutée, etc.
B22: Produits dérivés des cultures saisonnières | C22: Compost, fourrage, produit à valeur ajoutée, etc.
B23: Ventes de cultures pérennes | C23: Agrumes, pommes, dattes, baies, produits à valeur ajoutée, etc.
B24: Produits dérivés des cultures pérennes | C24: Bois de chauffage, paillis, produits à valeur ajoutée, etc.
B25: Ventes de bétail | C25: Bovins, moutons, poulets, etc.
B26: Produits dérivés de l'élevage | C26: Fumier, œufs, lait, laine, produit à valeur ajoutée, etc.
B27: Revenus de location | C27: Main-d'œuvre, véhicules, terrains, etc.
B28: Revenus des services | C28: Sous-traitance, service d'entretien, service d'emballage, transport, etc.
D30: =SUM(D21:D29) -> 0
C32: Profit ou perte | D32: =D30-D17 -> 0
B33: =IF(D32>0,"You are profitable! Proceed with detailed analysis to be sure.",(IF(D32<0,"You are making a loss. Review your values or consider additional income opportunities or means to reduce expenses.",""))) -> 

Sheet Feuille de traduction
A2: Feuille de traduction
A4: Introduction
A5: Certains textes utilisés dans cet outil sont utilisés dans des formules qui utilisent la reconnaissance de texte. Afin de préserver l'intégrité et la fonctionnalité de la formule, ces textes resteront en anglais. Une liste de ces textes et leur traduction correspondante est compilée ci-dessous :
A6: Texte original en anglais | B6: Feuille | C6: Traduction française
A7: Acre | B7: 1. Informations générales | C7: acre
A8: ha | B8: 1. Informations générales | C8: hectare
A9: kg | B9: 1. Informations générales | C9: kilo
A10: metric ton | B10: 1. Informations générales | C10: tonne métrique
A11: pound (lb) | B11: 1. Informations générales | C11: livres
A12: quintal | B12: 1. Informations générales | C12: quintal
A13: Sq. feet | B13: 1. Informations générales | C13: pieds carrés
A14: Sq. yard | B14: 1. Informations générales | C14: cour carrée
A15: Sq.km | B15: 1. Informations générales | C15: kilomètre carré
A16: Sq.m | B16: 1. Informations générales | C16: mètre carré
